fUST/lending_fUST_20250609
["ID","MTS","AMOUNT","RATE_DAILY","PERIOD"]
[365034625,1749418242943,-599.18,0.00021095,2]
[365034626,1749418242953,-151.0,0.000211,3]
[365034628,1749418242963,-5401.88788537,0.00021176,4]
[365034629,1749418242973,-151.0,0.00021176,2]
[365034631,1749418242983,-151.0,0.00021176,2]
[365034632,1749418242992,-152.449439,0.00021176,2]
[365034633,1749418243003,-167.615807,0.00021176,2]
[365034634,1749418243012,-151.0,0.00021176,2]
[365034635,1749418243022,-167.615807,0.00021176,2]
[365034636,1749418243032,-213.532144,0.00021176,2]
[365034637,1749418243042,-151.0,0.00021176,2]
[365034638,1749418243051,-151.0,0.00021176,2]
[365034639,1749418243061,-5401.88788537,0.00021314,5]
[365034640,1749418243071,-151.0,0.00021349,2]
[365034641,1749418243080,-151.0,0.00021349,2]
[365034642,1749418243090,-151.0,0.00021349,2]
[365034643,1749418243099,-151.0,0.00021349,2]
[365034644,1749418243109,-200.709546,0.00021349,2]
[365034645,1749418243118,-188.253285,0.00021349,2]
[365034647,1749418243128,-188.253285,0.00021349,2]
[365034649,1749418243137,-151.0,0.00021349,2]
[365034650,1749418243147,-151.0,0.00021349,2]
[365034651,1749418243156,-151.0,0.00021349,2]
[365034652,1749418243165,-151.0,0.00021349,2]
[365034653,1749418243174,-3470.944811,0.00021349,2]
[365034654,1749418243184,-3470.944811,0.00021349,2]
[365034655,1749418243194,-151.0,0.00021349,2]
[365034656,1749418243203,-207.4,0.00021349,2]
[365034657,1749418243213,-5000.0,0.00021349,2]
[365034658,1749418243223,-151.0,0.00021369,2]
[365034659,1749418243233,-151.0,0.00021369,2]
[365034660,1749418243242,-151.0,0.00021369,2]
[365034661,1749418243259,-151.0,0.00021369,2]
[365034662,1749418243269,-793.580252,0.00021369,2]
[365034663,1749418243279,-793.580252,0.00021369,2]
[365034664,1749418243289,-440.0,0.00021369,2]
[365034665,1749418243298,-440.0,0.00021369,2]
[365034666,1749418243308,-542.1,0.00021369,2]
[365034667,1749418243318,-440.0,0.00021369,2]
[365034668,1749418243328,-953.62,0.00021369,2]
[365034669,1749418243337,-1917.51,0.00021369,2]
[365034670,1749418243346,-1779.9,0.00021369,2]
[365034671,1749418243356,-779.53,0.00021369,2]
[365034672,1749418243367,-440.0,0.00021369,2]
[365034673,1749418243377,-590.1,0.00021369,2]
[365034674,1749418243387,-449.02,0.00021369,2]
[365034675,1749418243398,-1589.29,0.00021369,2]
[365034676,1749418243409,-1332.04,0.00021369,2]
[365034677,1749418243420,-719.05,0.00021369,2]
[365034678,1749418243429,-440.0,0.00021369,2]
[365034679,1749418243439,-1635.96,0.00021369,2]
[365034680,1749418243451,-632.34,0.00021369,2]
[365034681,1749418243461,-760.16,0.00021369,2]
[365034682,1749418243471,-2457.25,0.00021369,2]
[365034683,1749418243481,-1607.52,0.00021369,2]
[365034684,1749418243492,-1690.48,0.00021369,2]
[365034685,1749418243502,-1001.47,0.00021369,2]
[365034686,1749418243512,-513.35,0.00021369,2]
[365034687,1749418243522,-421.84,0.00021369,2]
[365034688,1749418243531,-599.18,0.00021369,2]
[365034689,1749418243541,-500.0,0.00021423,2]
[365034690,1749418243551,-600.0,0.00021423,2]
[365034691,1749418243561,-205.49080572,0.00021423,2]
[365034692,1749418243571,-433.57904682,0.00021423,2]
[365034693,1749418243581,-5401.88788537,0.00021452,5]
[365034694,1749418243591,-151.0,0.00021452,2]
[365034695,1749418243600,-151.0,0.00021452,2]
[365034696,1749418243610,-151.0,0.00021452,2]
[365034697,1749418243620,-151.0,0.00021452,2]
[365034698,1749418243629,-151.0,0.00021452,2]
[365034699,1749418243639,-151.0,0.000215,3]
[365034700,1749418243648,-5401.88788537,0.0002159,5]
[365034701,1749418243657,-392.02500891,0.00021643,4]
[365034702,1749418243666,-151.0,0.00021643,2]
[365034703,1749418243675,-151.0,0.00021643,2]
[365034704,1749418243686,-175.526225,0.00021643,2]
[365034705,1749418243695,-151.0,0.00021643,2]
[365034706,1749418243704,-156.517548,0.00021643,2]
[365034707,1749418243714,-279.581645,0.00021643,2]
[365034708,1749418243723,-279.581645,0.00021643,2]
[365034709,1749418243732,-151.0,0.00021643,2]
[365034710,1749418243742,-440.0,0.00021643,2]
[365034711,1749418243755,-440.0,0.00021643,2]
[365034712,1749418243765,-542.1,0.00021643,2]
[365034713,1749418243774,-212.95,0.00021643,2]
[365034714,1749418243784,-953.62,0.00021643,2]
[365034715,1749418243794,-1917.51,0.00021643,2]
[365034716,1749418243803,-1779.9,0.00021643,2]
[365034717,1749418243812,-779.53,0.00021643,2]
[365034718,1749418243821,-440.0,0.00021643,2]
[365034719,1749418243832,-590.1,0.00021643,2]
[365034721,1749418243841,-449.02,0.00021643,2]
[365034723,1749418243851,-1589.29,0.00021643,2]
[365034725,1749418243861,-1332.04,0.00021643,2]
[365034727,1749418243871,-719.05,0.00021643,2]
[365034729,1749418243881,-440.0,0.00021643,2]
[365034731,1749418243890,-1635.96,0.00021643,2]
[365034733,1749418243900,-632.34,0.00021643,2]
[365034735,1749418243910,-760.16,0.00021643,2]
[365034737,1749418243919,-2457.25,0.00021643,2]
[365034739,1749418243929,-1607.52,0.00021643,2]
[365034741,1749418243938,-1690.48,0.00021643,2]
[365034742,1749418243948,-1001.47,0.00021643,2]
[365034743,1749418243957,-513.35,0.00021643,2]
[365034744,1749418243966,-599.18,0.00021643,2]
[365034745,1749418243976,-5401.88788537,0.00021728,5]
[365034746,1749418243985,-1886.24,0.000218,2]
[365034747,1749418243995,-737.33,0.00021815,2]
[365034748,1749418244004,-500.0,0.00021833,2]
[365034749,1749418244014,-500.0,0.0002185,2]
[365034750,1749418244023,-1400.0,0.00021861,2]
[365034751,1749418244032,-5401.88788537,0.00021866,6]
[365034752,1749418244042,-500.0,0.00021883,2]
[365034753,1749418244054,-5000.0,0.00021897,2]
[365034754,1749418244065,-151.0,0.000219,4]
[365034755,1749418244078,-637.52,0.000219,2]
[365034756,1749418244087,-737.33,0.00021915,2]
[365034757,1749418244097,-500.0,0.00021917,2]
[365034758,1749418244106,-151.0,0.00021917,2]
[365034759,1749418244117,-151.0,0.00021917,2]
[365034760,1749418244127,-282.341576,0.00021917,2]
[365034761,1749418244139,-151.0,0.00021917,2]
[365034762,1749418244150,-151.0,0.00021917,2]
[365034763,1749418244160,-151.0,0.00021917,2]
[365034764,1749418244170,-153.203852,0.00021917,2]
[365034765,1749418244179,-151.0,0.00021917,2]
[365034766,1749418244190,-151.0,0.00021917,2]
[365034767,1749418244201,-151.0,0.00021917,2]
[365034768,1749418244211,-153.991066,0.00021917,2]
[365034769,1749418244221,-440.0,0.00021917,2]
[365034770,1749418244231,-440.0,0.00021917,2]
[365034771,1749418244242,-542.1,0.00021917,2]
[365034772,1749418244253,-194.74946039,0.00021917,2]
[365034773,1749418244263,-953.62,0.00021917,2]
[365034774,1749418244273,-1917.51,0.00021917,2]
[365034775,1749418244282,-1779.9,0.00021917,2]
[365034776,1749418244292,-779.53,0.00021917,2]
[365034777,1749418244302,-440.0,0.00021917,2]
[365034778,1749418244313,-590.1,0.00021917,2]
[365034779,1749418244323,-449.02,0.00021917,2]
[365034780,1749418244333,-1589.29,0.00021917,2]
[365034781,1749418244343,-1332.04,0.00021917,2]
[365034782,1749418244354,-167.615807,0.00021917,2]
[365034783,1749418244363,-719.05,0.00021917,2]
[365034784,1749418244373,-151.0,0.00021917,2]
[365034785,1749418244384,-167.615807,0.00021917,2]
[365034786,1749418244393,-440.0,0.00021917,2]
[365034787,1749418244403,-1635.96,0.00021917,2]
[365034788,1749418244413,-151.0,0.00021917,2]
[365034789,1749418244423,-632.34,0.00021917,2]
[365034790,1749418244433,-760.16,0.00021917,2]
[365034791,1749418244444,-2457.25,0.00021917,2]
[365034792,1749418244454,-1607.52,0.00021917,2]
[365034793,1749418244465,-1690.48,0.00021917,2]
[365034794,1749418244475,-1001.47,0.00021917,2]
[365034795,1749418244485,-513.35,0.00021917,2]
[365034796,1749418244495,-599.18,0.00021917,2]
[365034797,1749418244505,-500.0,0.00021924,2]
[365034798,1749418244516,-508.513244,0.00021924,2]
[365034799,1749418244526,-500.0,0.00021924,2]
[365034800,1749418244536,-500.0,0.00021924,2]
[365034801,1749418244546,-500.0,0.00021924,2]
[365034802,1749418244556,-500.0,0.00021924,2]
[365034803,1749418244566,-1902.58784718,0.0002194,2]
[365034804,1749418244576,-3000.0,0.0002195,2]
[365034805,1749418244585,-3000.0,0.0002196,2]
[365034806,1749418244595,-3000.0,0.0002197,2]
[365034807,1749418244607,-1200.0,0.00021971,2]
[365034808,1749418244617,-500.0,0.00021973,2]
[365034809,1749418244628,-500.0,0.00021973,2]
[365034810,1749418244638,-3000.0,0.0002198,2]
[365034811,1749418244648,-151.0,0.0002198,7]
[365034812,1749418244658,-151.0,0.0002198,7]
[365034813,1749418244668,-153.246323,0.0002198,7]
[365034814,1749418244678,-151.0,0.0002198,7]
[365034815,1749418244688,-188.253285,0.0002198,7]
[365034816,1749418244699,-188.253285,0.0002198,7]
[365034817,1749418244709,-191.742793,0.0002198,7]
[365034818,1749418244719,-151.0,0.0002198,7]
[365034819,1749418244730,-151.0,0.0002198,7]
[365034820,1749418244739,-151.0,0.0002198,7]
[365034821,1749418244749,-3470.944811,0.0002198,2]
[365034822,1749418244761,-3470.944811,0.0002198,2]
[365034823,1749418244771,-3000.0,0.0002199,2]
[365034824,1749418244785,-500.0,0.00021994,2]
[365034825,1749418244796,-3000.0,0.00022,2]
[365034826,1749418244806,-1435.77619613,0.00022,7]
[365034827,1749418245050,-446.3429839,0.00019078,2]
[365034828,1749418245060,-14.6570161,0.00019178,2]
[365034829,1749418245072,-425.3429839,0.00019178,2]
[365034830,1749418245081,-440.0,0.00019178,2]
[365034831,1749418245091,-440.0,0.00019452,2]
[365034832,1749418245100,-446.34298386,0.00019786,2]
[365034833,1749418245109,-160.0,0.00020193,2]
[365034834,1749418245118,-729.81289455,0.00022,7]
[365034835,1749418245137,-77208.59090932,0.00022,7]
[365034836,1749418245146,-151.0,0.00022,7]
[365034837,1749418245156,-151.0,0.00022,7]
[365034838,1749418245303,-151.0,0.00022,7]
[365034839,1749418245314,-35121.15,0.00022,2]
[365034840,1749418245323,-151.0,0.00022,7]
[365034841,1749418245333,-151.0,0.00022,7]
[365034842,1749418245342,-151.0,0.00022,7]
[365034843,1749418245352,-151.0,0.00022,7]
[365034844,1749418245363,-151.0,0.00022,7]
[365034845,1749418245372,-156.599705,0.00022,7]
[365034846,1749418245382,-151.370937,0.00022,7]
[365034847,1749418245392,-151.0,0.00022,7]
[365034848,1749418245401,-151.0,0.00022,7]
[365034849,1749418245411,-175.526225,0.00022,7]
[365034850,1749418245420,-158.806229,0.00022,7]
[365034851,1749418245430,-279.581645,0.00022,7]
[365034852,1749418245440,-279.581645,0.00022,7]
[365034853,1749418245450,-151.0,0.00022,7]
[365034854,1749418245460,-151.0,0.00022,7]
[365034855,1749418245470,-151.0,0.00022,7]
[365034856,1749418245480,-160.02432,0.00022,7]
[365034857,1749418245490,-151.0,0.00022,7]
[365034858,1749418245500,-151.0,0.00022,7]
[365034859,1749418245510,-151.0,0.00022,7]
[365034860,1749418245519,-151.0,0.00022,7]
[365034861,1749418245530,-151.0,0.00022,7]
[365034862,1749418245540,-151.0,0.00022,7]
[365034863,1749418245550,-151.0,0.00022,7]
[365034864,1749418245560,-151.0,0.00022,7]
[365034865,1749418245570,-793.580252,0.00022,7]
[365034866,1749418245579,-793.580252,0.00022,7]
[365034867,1749418245589,-151.0,0.00022,7]
[365034868,1749418245600,-188.253285,0.00022,7]
[365034869,1749418245609,-188.253285,0.00022,7]
[365034870,1749418245619,-171.0,0.00022,2]
[365034871,1749418245629,-151.0,0.00022,7]
[365034872,1749418245638,-151.0,0.00022,7]
[365034873,1749418245648,-151.0,0.00022,7]
[365034874,1749418245658,-3470.944811,0.00022,2]
[365034875,1749418245668,-3470.944811,0.00022,2]
[365034876,1749418245678,-10220.96164633,0.00022,2]
[365034877,1749418245688,-5364.40417707,0.00022,2]
[365034878,1749418245697,-167.615807,0.00022,7]
[365034879,1749418245707,-151.0,0.00022,7]
[365034880,1749418245717,-167.615807,0.00022,7]
[365034881,1749418245727,-299.637199,0.00022,7]
[365034882,1749418245737,-150.0,0.00022,2]
[365034883,1749418245746,-5401.88788537,0.00022003,6]
[365034884,1749418245757,-3000.0,0.0002201,2]
[365034885,1749418245766,-737.33,0.00022015,3]
[365034886,1749418245776,-3000.0,0.0002202,2]
[365034887,1749418245786,-3000.0,0.0002203,2]
[365034888,1749418245795,-3000.0,0.0002204,2]
[365034889,1749418245805,-3000.0,0.0002205,2]
[365034890,1749418245814,-3000.0,0.0002206,2]
[365034891,1749418245823,-3000.0,0.0002207,2]
[365034892,1749418245833,-3000.0,0.0002208,2]
[365034893,1749418245842,-3000.0,0.0002209,2]
[365034894,1749418245852,-3000.0,0.000221,2]
[365034895,1749418245861,-158.6873432,0.0002211,2]
[365034896,1749418245871,-153.0,0.0002211,2]
[365034897,1749418245880,-176.7524085,0.0002211,2]
[365034898,1749418245890,-573.126752,0.0002211,2]
[365034899,1749418245899,-159.5513002,0.0002211,2]
[365034900,1749418245909,-3000.0,0.0002211,2]
[365034901,1749418245919,-737.33,0.00022115,4]
[365034902,1749418245929,-3000.0,0.0002212,2]
[365034903,1749418245938,-3000.0,0.0002213,2]
[365034904,1749418245948,-3000.0,0.0002214,2]
[365034905,1749418245957,-5401.88788537,0.00022141,6]
[365034906,1749418245967,-3000.0,0.0002215,2]
[365034907,1749418245976,-3000.0,0.0002216,2]
[365034908,1749418245986,-3000.0,0.0002217,2]
[365034909,1749418245995,-3000.0,0.0002218,2]
[365034911,1749418246004,-3000.0,0.0002219,2]
[365034913,1749418246014,-151.0,0.00022191,7]
[365034915,1749418246024,-151.0,0.00022191,7]
[365034917,1749418246035,-175.526225,0.00022191,7]
[365034918,1749418246044,-279.581645,0.00022191,7]
[365034919,1749418246054,-279.581645,0.00022191,7]
[365034920,1749418246064,-151.0,0.00022191,7]
[365034921,1749418246078,-151.0,0.00022191,7]
[365034922,1749418246087,-151.0,0.00022191,7]
[365034923,1749418246096,-151.0,0.00022191,7]
[365034924,1749418246106,-265.491957,0.00022191,7]
[365034925,1749418246117,-151.0,0.00022191,7]
[365034926,1749418246126,-151.0,0.00022191,7]
[365034927,1749418246138,-151.0,0.00022191,7]
[365034928,1749418246149,-151.0,0.00022191,7]
[365034929,1749418246159,-793.580252,0.00022191,7]
[365034931,1749418246168,-793.580252,0.00022191,7]
[365034933,1749418246178,-440.0,0.00022191,4]
[365034935,1749418246188,-440.0,0.00022191,4]
[365034937,1749418246198,-542.1,0.00022191,4]
[365034939,1749418246208,-953.62,0.00022191,4]
[365034941,1749418246218,-1917.51,0.00022191,4]
[365034943,1749418246227,-1779.9,0.00022191,4]
[365034945,1749418246237,-779.53,0.00022191,4]
[365034947,1749418246247,-435.46667176,0.00022191,4]
[365034949,1749418246257,-590.1,0.00022191,4]
[365034951,1749418246267,-449.02,0.00022191,4]
[365034953,1749418246276,-1589.29,0.00022191,4]
[365034955,1749418246286,-1332.04,0.00022191,4]
[365034957,1749418246296,-719.05,0.00022191,4]
[365034959,1749418246306,-440.0,0.00022191,4]
[365034960,1749418246316,-1635.96,0.00022191,4]
[365034961,1749418246327,-632.34,0.00022191,4]
[365034962,1749418246338,-760.16,0.00022191,4]
[365034963,1749418246348,-2457.25,0.00022191,4]
[365034964,1749418246358,-1607.52,0.00022191,4]
[365034965,1749418246369,-1690.48,0.00022191,4]
[365034966,1749418246380,-1001.47,0.00022191,4]
[365034967,1749418246390,-513.35,0.00022191,4]
[365034968,1749418246399,-599.18,0.00022191,4]
[365034969,1749418246408,-3000.0,0.000222,2]
[365034970,1749418246419,-3000.0,0.0002221,2]
[365034971,1749418246427,-737.33,0.00022215,4]
[365034972,1749418246437,-3000.0,0.0002222,2]
[365034973,1749418246446,-3000.0,0.0002223,2]
[365034974,1749418246455,-3000.0,0.0002224,2]
[365034975,1749418246464,-167.615807,0.0002224,7]
[365034976,1749418246473,-151.0,0.0002224,7]
[365034977,1749418246482,-167.615807,0.0002224,7]
[365034978,1749418246492,-3000.0,0.0002225,2]
[365034980,1749418246501,-3000.0,0.0002226,2]
[365034982,1749418246511,-3000.0,0.0002227,2]
[365034984,1749418246521,-182.3413227,0.00022279,7]
[365034986,1749418246531,-151.0,0.00022279,7]
[365034988,1749418246540,-153.040132,0.00022279,7]
[365034990,1749418246550,-188.253285,0.00022279,7]
[365034992,1749418246559,-188.253285,0.00022279,7]
[365034994,1749418246569,-151.0,0.00022279,7]
[365034996,1749418246579,-151.0,0.00022279,7]
[365034998,1749418246589,-151.0,0.00022279,7]
[365035000,1749418246599,-3470.944811,0.00022279,2]
[365035002,1749418246610,-3470.944811,0.00022279,2]
[365035004,1749418246620,-5401.88788537,0.00022279,6]
[365035006,1749418246630,-3000.0,0.0002228,2]
[365035008,1749418246640,-3000.0,0.0002229,2]
[365035010,1749418246649,-3000.0,0.000223,2]
[365035012,1749418246659,-151.0,0.000223,6]
[365035014,1749418246668,-151.0,0.000223,7]
[365035015,1749418246678,-3000.0,0.0002231,2]
[365035016,1749418246688,-737.33,0.00022315,4]
[365035017,1749418246698,-3000.0,0.0002232,2]
[365035018,1749418246708,-151.0,0.0002232,7]
[365035019,1749418246717,-151.0,0.0002232,7]
[365035020,1749418246727,-151.0,0.0002232,7]
[365035021,1749418246739,-3000.0,0.0002233,2]
[365035022,1749418246752,-151.0,0.0002233,7]
[365035023,1749418246763,-151.0,0.0002233,7]
[365035024,1749418246774,-3000.0,0.0002234,2]
[365035026,1749418246783,-151.0,0.0002234,7]
[365035028,1749418246792,-151.0,0.0002234,7]
[365035030,1749418246802,-3000.0,0.0002235,2]
[365035031,1749418246811,-3000.0,0.0002236,2]
[365035032,1749418246820,-3000.0,0.0002237,2]
[365035033,1749418246829,-3000.0,0.0002238,2]
[365035034,1749418246839,-151.0,0.0002238,7]
[365035035,1749418246848,-151.0,0.0002238,7]
[365035036,1749418246858,-151.0,0.0002238,7]
[365035037,1749418246867,-329.475313,0.0002238,7]
[365035038,1749418246877,-329.475313,0.0002238,7]
[365035039,1749418246885,-3000.0,0.0002239,2]
[365035040,1749418246894,-1003.01712647,0.00022398,2]
[365035041,1749418246902,-3000.0,0.000224,2]
[365035042,1749418246910,-3000.0,0.0002241,2]
[365035043,1749418246918,-737.33,0.00022415,3]
[365035044,1749418246927,-5401.88788537,0.00022417,7]
[365035045,1749418246936,-3790.778062,0.0002242,2]
[365035046,1749418246945,-1000.0,0.00022431,2]
[365035047,1749418246955,-5000.0,0.00022445,2]
[365035048,1749418246965,-154.64501018,0.00022455,2]
[365035049,1749418246974,-200.48904439,0.00022464,2]
[365035050,1749418246983,-400.0,0.00022465,2]
[365035051,1749418246993,-400.0,0.00022465,2]
[365035052,1749418247003,-400.0,0.00022465,2]
[365035053,1749418247013,-400.0,0.00022465,2]
[365035054,1749418247022,-400.0,0.00022465,2]
[365035055,1749418247031,-400.0,0.00022465,2]
[365035056,1749418247041,-400.0,0.00022465,2]
[365035057,1749418247050,-400.0,0.00022465,2]
[365035058,1749418247059,-400.0,0.00022465,2]
[365035059,1749418247069,-400.0,0.00022465,2]
[365035060,1749418247079,-400.0,0.00022465,2]
[365035061,1749418247089,-400.0,0.00022465,2]
[365035062,1749418247098,-400.0,0.00022465,2]
[365035063,1749418247108,-151.0,0.00022465,7]
[365035064,1749418247117,-151.0,0.00022465,7]
[365035065,1749418247126,-151.0,0.00022465,7]
[365035066,1749418247135,-151.0,0.00022465,7]
[365035067,1749418247144,-151.0,0.00022465,7]
[365035068,1749418247154,-151.0,0.00022465,7]
[365035069,1749418247163,-151.0,0.00022465,7]
[365035070,1749418247173,-793.580252,0.00022465,7]
[365035071,1749418247183,-793.580252,0.00022465,7]
[365035072,1749418247193,-440.0,0.00022465,4]
[365035073,1749418247202,-440.0,0.00022465,4]
[365035074,1749418247211,-542.1,0.00022465,4]
[365035075,1749418247221,-953.62,0.00022465,4]
[365035076,1749418247232,-1917.51,0.00022465,4]
[365035077,1749418247242,-1779.9,0.00022465,4]
[365035078,1749418247252,-779.53,0.00022465,4]
[365035079,1749418247262,-590.1,0.00022465,4]
[365035080,1749418247271,-449.02,0.00022465,4]
[365035081,1749418247281,-1589.29,0.00022465,4]
[365035082,1749418247291,-1332.04,0.00022465,4]
[365035083,1749418247300,-719.05,0.00022465,4]
[365035084,1749418247309,-440.0,0.00022465,4]
[365035085,1749418247319,-1635.96,0.00022465,4]
[365035086,1749418247328,-632.34,0.00022465,4]
[365035087,1749418247339,-760.16,0.00022465,4]
[365035088,1749418247349,-2457.25,0.00022465,4]
[365035089,1749418247358,-1607.52,0.00022465,4]
[365035090,1749418247368,-1690.48,0.00022465,4]
[365035091,1749418247380,-1001.47,0.00022465,4]
[365035092,1749418247390,-513.35,0.00022465,4]
[365035093,1749418247399,-599.18,0.00022465,4]
[365035094,1749418247409,-1000.0,0.00022472,2]
[365035095,1749418247418,-1000.0,0.00022472,2]
[365035096,1749418247428,-1000.0,0.00022472,2]
[365035097,1749418247438,-167.2222613,0.00022495,2]
[365035098,1749418247448,-279.581645,0.00022515,7]
[365035099,1749418247458,-279.581645,0.00022515,7]
[365035100,1749418247468,-151.0,0.00022515,7]
[365035101,1749418247478,-737.33,0.00022515,7]
[365035102,1749418247488,-1800.0,0.00022519,2]
[365035103,1749418247606,-1000.0,0.00022521,2]
[365035104,1749418247617,-1000.0,0.00022521,2]
[365035105,1749418247627,-258.57185496,0.00022542,2]
[365035106,1749418247637,-5401.88788537,0.00022555,7]
[365035107,1749418247646,-5000.0,0.00022575,2]
[365035108,1749418247656,-167.615807,0.00022575,7]
[365035109,1749418247666,-249.551701,0.00022575,7]
[365035110,1749418247676,-167.615807,0.00022575,7]
[365035111,1749418247686,-737.33,0.00022615,5]
[365035112,1749418247696,-940.94,0.00022616,2]
[365035113,1749418247705,-168.0,0.00022652,2]
[365035114,1749418247716,-151.0,0.00022693,7]
[365035115,1749418247726,-175.526225,0.00022693,7]
[365035116,1749418247736,-5401.88788537,0.00022693,7]
[365035117,1749418247745,-151.0,0.000227,5]
[365035118,1749418247755,-5888.0,0.00022701,2]
[365035119,1749418247765,-737.33,0.00022715,2]
[365035120,1749418247775,-215.0738,0.00022718,2]
[365035121,1749418247785,-153.701016,0.00022726,7]
[365035122,1749418247795,-188.253285,0.00022726,7]
[365035123,1749418247804,-188.253285,0.00022726,7]
[365035124,1749418247814,-151.0,0.00022726,7]
[365035125,1749418247825,-151.0,0.00022726,7]
[365035126,1749418247835,-151.0,0.00022726,7]
[365035127,1749418247845,-3470.944811,0.00022726,2]
[365035128,1749418247854,-3470.944811,0.00022726,2]
[365035129,1749418247864,-5888.0,0.00022726,2]
[365035130,1749418247874,-542.1,0.00022739,4]
[365035131,1749418247884,-440.0,0.00022739,4]
[365035132,1749418247894,-953.62,0.00022739,4]
[365035133,1749418247904,-1917.51,0.00022739,4]
[365035134,1749418247914,-1779.9,0.00022739,4]
[365035135,1749418247924,-779.53,0.00022739,4]
[365035136,1749418247934,-590.1,0.00022739,4]
[365035137,1749418247945,-449.02,0.00022739,4]
[365035138,1749418247955,-1589.29,0.00022739,4]
[365035139,1749418247965,-1332.04,0.00022739,4]
[365035140,1749418247975,-719.05,0.00022739,4]
[365035141,1749418247985,-440.0,0.00022739,4]
[365035142,1749418247995,-1635.96,0.00022739,4]
[365035143,1749418248005,-632.34,0.00022739,4]
[365035144,1749418248015,-760.16,0.00022739,4]
[365035145,1749418248026,-2457.25,0.00022739,4]
[365035146,1749418248036,-1607.52,0.00022739,4]
[365035147,1749418248046,-1690.48,0.00022739,4]
[365035148,1749418248056,-1001.47,0.00022739,4]
[365035149,1749418248065,-513.35,0.00022739,4]
[365035150,1749418248079,-599.18,0.00022739,4]
[365035151,1749418248089,-2003.0,0.00022741,2]
[365035152,1749418248099,-587.0,0.00022775,2]
[365035153,1749418248108,-587.0,0.00022775,2]
[365035154,1749418248118,-912.15993345,0.00022795,3]
[365035155,1749418248128,-737.33,0.00022815,5]
[365035156,1749418248138,-5401.88788537,0.00022831,8]
[365035157,1749418248147,-1640.912837,0.00022834,3]
[365035158,1749418248157,-5888.0,0.00022856,2]
[365035159,1749418248167,-1886.24,0.000229,7]
[365035160,1749418248177,-737.33,0.00022915,5]
[365035161,1749418248186,-5299.0,0.00022953,2]
[365035162,1749418248196,-1400.0,0.00022957,2]
[365035163,1749418248206,-151.0,0.00022968,7]
[365035164,1749418248216,-5401.88788537,0.00022969,8]
[365035165,1749418248226,-500.0,0.00022979,2]
[365035166,1749418248235,-168.0,0.00022992,2]
[365035167,1749418248245,-200.0,0.00023,2]
[365035168,1749418248254,-637.52,0.00023,7]
[365035169,1749418248264,-32680.89933984,0.00023,2]
[365035170,1749418248274,-623.95390499,0.00023,2]
[365035171,1749418248283,-7558.46582254,0.00023,2]
[365035172,1749418248292,-2142.65736396,0.00023,30]
[365035173,1749418248302,-542.1,0.00023013,4]
[365035174,1749418248312,-195.93,0.00023013,4]
[365035175,1749418248321,-953.62,0.00023013,4]
[365035176,1749418248331,-1917.51,0.00023013,4]
[365035177,1749418248340,-1779.9,0.00023013,4]
[365035178,1749418248350,-779.53,0.00023013,4]
[365035179,1749418248360,-590.1,0.00023013,4]